bitfinex-derivatives/quotes_SOLF0:USTF0_20260306
["timestamp","ask_amount","ask_price","bid_price","bid_amount"]
[1772790226887,3.05668586,87.36,87.311,6.61684547]
[1772790227882,10.302,87.35,87.311,6.61684547]
[1772790228083,3.05668586,87.36,87.311,6.61684547]
[1772790228486,10.301,87.359,87.311,6.61684547]
[1772790230594,10.302,87.353,87.311,6.61684547]
[1772790230794,3.05668586,87.36,87.311,6.61684547]
[1772790231193,10.303,87.344,87.311,6.61684547]
[1772790231596,3.05668586,87.35,87.291,6.62701564]
[1772790231791,10.303,87.341,87.291,6.62701564]
[1772790231991,10.303,87.341,87.301,6.63241079]
[1772790232894,10.303,87.349,87.301,6.63241079]
[1772790233092,10.303,87.349,87.311,6.63241079]
[1772790234590,10.302,87.358,87.313,6.64373654]
[1772790235785,10.302,87.352,87.313,6.64373654]
[1772790236189,3.05041805,87.37,87.313,6.64373654]
[1772790236190,3.05041805,87.37,87.32,3.05041805]
[1772790236396,10.3,87.366,87.321,6.65590529]
[1772790236592,3.05041805,87.38,87.321,6.65590529]
[1772790236796,10.301,87.359,87.321,6.65590529]
[1772790238199,10.301,87.366,87.321,6.65590529]
[1772790240092,10.3,87.374,87.323,10.306]
[1772790240291,10.3,87.374,87.324,6.65348881]
[1772790240497,10.3,87.374,87.33,3.05041805]
[1772790240700,10.3,87.374,87.331,6.65348881]
[1772790240900,10.3,87.367,87.331,6.65348881]
[1772790242202,10.302,87.353,87.317,6.66313468]
[1772790242799,10.302,87.353,87.3,3.05041805]
[1772790242800,10.303,87.348,87.304,6.66313468]
[1772790243703,3.05041805,87.35,87.304,6.66313468]
[1772790244706,10.304,87.336,87.304,6.66313468]
[1772790244908,10.304,87.336,87.29,6.65887786]
[1772790245910,10.304,87.336,87.291,6.66093742]
[1772790247604,10.305,87.326,87.28,3.05041805]
[1772790247811,3.05041805,87.32,87.277,6.6593524]
[1772790248310,3.05041805,87.33,87.277,6.6593524]
[1772790248502,3.05041805,87.32,87.277,6.6593524]
[1772790249105,3.05041805,87.35,87.301,6.6593524]
[1772790249704,3.05041805,87.35,87.305,6.6593524]
[1772790249904,3.05041805,87.36,87.305,6.6593524]
[1772790250104,9.26056788,87.359,87.305,6.6593524]
[1772790250307,9.26056788,87.358,87.31,3.05041805]
[1772790250509,9.26056788,87.357,87.311,6.65761]
[1772790250809,3.05041805,87.35,87.301,6.65761]
[1772790251313,10.302,87.354,87.311,6.65761]
[1772790251613,9.26171291,87.353,87.311,6.65761]
[1772790251812,10.301,87.362,87.321,6.67166206]
[1772790252014,9.26236258,87.361,87.321,6.67166206]
[1772790252211,9.26236258,87.36,87.321,6.67166206]
[1772790252408,3.05041805,87.37,87.321,6.67166206]
[1772790252610,9.26424072,87.369,87.321,6.67166206]
[1772790252804,10.301,87.359,87.321,6.67166206]
[1772790255818,3.05041805,87.38,87.331,6.68122832]
[1772790256113,9.27388091,87.379,87.331,6.68122832]
[1772790256316,9.27388091,87.378,87.331,6.68122832]
[1772790256618,9.27388091,87.377,87.331,6.68122832]
[1772790256914,3.05041805,87.4,87.341,6.68122832]
[1772790257119,9.27772499,87.399,87.343,6.68122832]
[1772790257321,9.27772499,87.398,87.35,3.05041805]
[1772790257515,9.27772499,87.397,87.351,6.68122832]
[1772790257715,3.97001111,87.415,87.37,6.95388037]
[1772790258018,3.97001111,87.415,87.371,3.90346232]
[1772790258212,3.97001111,87.415,87.374,3.90346232]
[1772790258614,3.97001111,87.419,87.36,3.05041805]
[1772790258822,3.97001111,87.419,87.361,3.90346232]
[1772790259118,3.97001111,87.419,87.371,3.90346232]
[1772790259317,13.81743692,87.457,87.371,3.90346232]
[1772790259318,3.05041805,87.43,87.371,3.90346232]
[1772790259518,3.05041805,87.43,87.37,3.05041805]
[1772790259519,3.05041805,87.43,87.381,3.90346232]
[1772790259713,3.05041805,87.41,87.37,3.90346232]
[1772790260315,3.05041805,87.41,87.36,3.05041805]
[1772790260316,3.97001111,87.409,87.36,3.05041805]
[1772790261923,3.97001111,87.409,87.36,6.95388037]
[1772790262514,3.97001111,87.409,87.361,3.90346232]
[1772790262721,3.05041805,87.42,87.363,3.90346232]
[1772790263020,3.97001111,87.419,87.363,3.90346232]
[1772790263722,3.97001111,87.419,87.32,62.0]
[1772790263723,3.97001111,87.419,87.371,3.90346232]
[1772790264116,3.97001111,87.409,87.36,3.05041805]
[1772790264822,3.97001111,87.389,87.341,3.90346232]
[1772790265520,3.05041805,87.4,87.352,3.90346232]
[1772790266324,3.05041805,87.4,87.357,3.90346232]
[1772790266728,3.05041805,87.39,87.357,3.90346232]
[1772790267924,14.26701111,87.399,87.357,3.90346232]
[1772790268224,3.97001111,87.399,87.35,6.95388037]
[1772790268523,3.97001111,87.399,87.351,3.90346232]
[1772790268724,3.97001111,87.399,87.35,3.05041805]
[1772790268725,3.97001111,87.399,87.352,3.90346232]
[1772790269026,3.97001111,87.399,87.36,3.05041805]
[1772790269223,3.05041805,87.41,87.365,3.90346232]
[1772790269425,3.97001111,87.414,87.365,3.90346232]
[1772790270024,3.97001111,87.408,87.361,10.301]
[1772790270223,3.05041805,87.4,87.361,10.301]
[1772790271028,3.05041805,87.4,87.354,3.90346232]
[1772790272021,10.296,87.402,87.356,10.302]
[1772790273122,10.297,87.4,87.357,3.76928394]
[1772790273827,10.297,87.4,87.306,20.615]
[1772790273828,13.34541805,87.41,87.36,3.05041805]
[1772790274025,3.96603437,87.415,87.301,11.47]
[1772790274026,3.96603437,87.415,87.361,3.76928394]
[1772790274224,3.96603437,87.415,87.371,3.76928394]
[1772790275031,3.96603437,87.415,87.372,14.06928394]
[1772790276424,3.95779837,87.429,87.381,3.76928394]
[1772790276624,3.95779837,87.419,87.37,3.05041805]
[1772790277422,3.95779837,87.419,87.366,14.06928394]
[1772790277829,3.95779837,87.419,87.367,3.76928394]
[1772790278029,3.95779837,87.419,87.37,3.05041805]
[1772790278429,3.95779837,87.419,87.367,3.76928394]
[1772790278830,10.295,87.409,87.367,3.76928394]
[1772790279431,3.05041805,87.4,87.359,10.301]
[1772790279626,4.02495756,87.403,87.359,10.301]
[1772790279833,4.02495756,87.403,87.362,10.301]
[1772790280132,4.02495756,87.403,87.353,3.76928394]
[1772790280133,3.05041805,87.4,87.353,3.76928394]
[1772790280325,4.02495756,87.403,87.353,3.76928394]
[1772790281132,4.02495756,87.403,87.36,3.05041805]
[1772790281433,14.32095756,87.403,87.36,3.05041805]
[1772790282432,10.297,87.395,87.353,14.07128394]
[1772790282622,14.32195756,87.395,87.353,14.07128394]
[1772790282828,4.02495756,87.394,87.35,3.05041805]
[1772790283834,10.297,87.392,87.35,3.05041805]
[1772790284234,4.02495756,87.391,87.35,3.05041805]
[1772790284535,4.02495756,87.409,87.37,3.05041805]
[1772790285034,4.02495756,87.409,87.371,3.76928394]
[1772790285534,10.295,87.416,87.371,3.76928394]
[1772790286333,10.295,87.416,87.372,10.3]
[1772790286534,10.294,87.423,87.38,3.05041805]
[1772790286735,4.02495756,87.424,87.38,3.05041805]
[1772790286934,4.02495756,87.424,87.381,3.76928394]
[1772790288036,4.02495756,87.424,87.38,3.05041805]
[1772790288829,3.94020955,87.423,87.374,10.299]
[1772790289028,3.94020955,87.423,87.38,3.05041805]
[1772790289533,3.94020955,87.423,87.381,14.06828394]
[1772790289742,3.90380816,87.439,87.381,3.76928394]
[1772790290538,3.90380816,87.431,87.383,3.76928394]
[1772790291439,3.90380816,87.449,87.391,3.76928394]
[1772790291739,10.292,87.438,87.393,3.76928394]
[1772790292534,10.293,87.433,87.393,3.76928394]
[1772790293240,3.89613583,87.426,87.382,10.299]
[1772790293840,10.293,87.434,87.387,3.76928394]
[1772790294541,10.293,87.434,87.392,3.76928394]
[1772790294737,3.89412442,87.439,87.4,3.04402203]
[1772790294942,3.89412442,87.439,87.392,3.76928394]
[1772790295442,10.292,87.437,87.392,3.76928394]
[1772790295742,3.89412442,87.429,87.38,3.76928394]
[1772790296144,3.89898441,87.426,87.38,6.81330597]
[1772790296442,3.89898441,87.426,87.381,3.76928394]
[1772790296742,10.293,87.427,87.391,3.76928394]
[1772790298344,14.19646416,87.421,87.38,13.34302203]
[1772790298548,3.90246416,87.42,87.38,13.34302203]
[1772790298842,3.90246416,87.419,87.377,3.76928394]
[1772790299239,14.19646416,87.419,87.377,3.76928394]
[1772790299439,14.19646416,87.419,87.38,3.04402203]
[1772790299747,3.86073094,87.439,87.381,3.76928394]
[1772790299946,3.86073094,87.437,87.381,3.76928394]
[1772790300144,3.86073094,87.435,87.381,3.76928394]
[1772790300345,3.86073094,87.429,87.381,3.76928394]
[1772790300546,9.21611396,87.428,87.381,3.76928394]
[1772790300740,9.21611396,87.427,87.381,14.06828394]
[1772790300937,3.86073094,87.425,87.37,3.04402203]
[1772790301139,3.86073094,87.423,87.37,3.04402203]
[1772790301340,3.04402203,87.43,87.371,3.76928394]
[1772790301341,14.15473094,87.421,87.371,3.76928394]
[1772790301544,10.294,87.421,87.381,4.03278453]
[1772790302341,10.294,87.421,87.327,11.47]
[1772790302342,3.66592499,87.419,87.354,4.03278453]
[1772790302542,3.66592499,87.399,87.354,4.03278453]
[1772790302754,9.22737694,87.398,87.354,4.03278453]
[1772790302952,3.66592499,87.417,87.37,7.07680656]
[1772790303248,9.20726984,87.416,87.371,4.03278453]
[1772790303445,3.66592499,87.433,87.381,4.03278453]
[1772790303645,9.20935299,87.432,87.381,4.03278453]
[1772790303847,3.04402203,87.43,87.383,4.03278453]
[1772790304347,10.293,87.426,87.385,10.298]
[1772790305750,10.293,87.426,87.383,4.03278453]
[1772790306747,3.66592499,87.399,87.355,4.03278453]
[1772790307147,3.66592499,87.399,87.363,10.301]
[1772790307841,3.66592499,87.413,87.371,10.3]
[1772790308748,3.66592499,87.413,87.377,10.299]
[1772790309344,10.294,87.423,87.377,10.299]
[1772790309548,10.294,87.423,87.384,10.298]
[1772790309953,3.66592499,87.427,87.384,10.298]
[1772790310353,3.66592499,87.427,87.384,14.33078453]
[1772790310854,6.70994702,87.42,87.37,3.04402203]
[1772790311353,6.70994702,87.42,87.371,4.03278453]
[1772790311549,3.66592499,87.42,87.371,4.03278453]
[1772790311752,3.66592499,87.42,87.38,3.04402203]
[1772790312254,13.95992499,87.42,87.371,4.03278453]
[1772790312454,3.66592499,87.419,87.371,4.03278453]
[1772790313155,10.294,87.418,87.371,4.03278453]
[1772790313550,10.296,87.408,87.371,4.03278453]
[1772790313949,3.66592499,87.419,87.371,4.03278453]
[1772790314156,3.66592499,87.417,87.371,4.03278453]
[1772790314454,19.50611001,87.416,87.372,10.3]
[1772790314650,10.295,87.416,87.372,10.3]
[1772790314855,13.96092499,87.416,87.372,10.3]
[1772790315056,3.66592499,87.416,87.378,10.299]
[1772790315258,6.70994702,87.43,87.381,4.03278453]
[1772790315555,3.66592499,87.444,87.406,10.296]
[1772790315760,3.66592499,87.444,87.4,3.04402203]
[1772790316256,10.292,87.443,87.391,14.33078453]
[1772790316449,3.66592499,87.439,87.391,14.33078453]
[1772790316757,9.20804201,87.438,87.391,14.33078453]
[1772790316958,3.66592499,87.439,87.391,14.33078453]
[1772790317153,9.20803732,87.438,87.391,14.33078453]
[1772790317358,3.66592499,87.439,87.391,14.33078453]
[1772790317659,3.66592499,87.437,87.383,10.298]
[1772790317859,3.66592499,87.435,87.383,10.298]
[1772790318054,10.293,87.431,87.383,10.298]
[1772790318861,10.293,87.431,87.388,10.298]
[1772790319054,3.66592499,87.435,87.388,4.03278453]
[1772790319258,3.66592499,87.455,87.401,4.03278453]
[1772790319459,9.2066024,87.454,87.404,10.296]
[1772790319756,3.04402203,87.45,87.404,10.296]
[1772790319959,3.66592499,87.448,87.404,10.296]
[1772790320357,3.66592499,87.448,87.411,10.295]
[1772790321257,3.04402203,87.46,87.418,10.294]
[1772790321463,9.20265621,87.459,87.412,4.03278453]
[1772790321655,9.20265621,87.458,87.412,4.03278453]
[1772790321861,9.20265621,87.457,87.412,4.03278453]
[1772790322160,3.66592499,87.462,87.414,4.03278453]
[1772790322662,3.66592499,87.469,87.421,4.03278453]
[1772790322861,11.48826257,87.498,87.421,4.03278453]
[1772790322862,3.04402203,87.46,87.421,4.03278453]
[1772790325366,10.288,87.473,87.43,10.293]
[1772790325566,6.70994702,87.48,87.431,4.03278453]
[1772790325767,10.287,87.478,87.431,4.03278453]
[1772790326366,3.66592499,87.476,87.41,3.04402203]
[1772790326668,6.70994702,87.47,87.411,4.03278453]
[1772790326871,6.70994702,87.47,87.42,3.04402203]
[1772790327073,6.70994702,87.47,87.421,4.03278453]
[1772790327365,3.66592499,87.47,87.421,4.03278453]
[1772790327766,3.66592499,87.47,87.43,10.293]
[1772790328167,3.66592499,87.5,87.43,7.07680656]
[1772790328474,3.66592499,87.469,87.417,4.03278453]
[1772790328772,3.66592499,87.469,87.421,4.03278453]
[1772790328973,13.95392499,87.469,87.421,4.03278453]
[1772790329273,3.04402203,87.48,87.431,4.03278453]
[1772790329469,3.66592499,87.479,87.431,4.03278453]
[1772790329769,13.33202203,87.47,87.431,4.03278453]
[1772790330369,3.66592499,87.479,87.432,10.293]
[1772790330370,13.95292499,87.479,87.432,10.293]
[1772790331064,13.95292499,87.479,87.433,4.03278453]
[1772790331470,3.66592499,87.479,87.436,4.00816061]
[1772790331866,3.66592499,87.479,87.43,3.04402203]
[1772790332271,3.66592499,87.479,87.431,3.89756671]
[1772790332768,3.66592499,87.479,87.432,10.293]
[1772790333076,3.66592499,87.479,87.431,3.89756671]
[1772790333776,10.287,87.477,87.431,3.89756671]
[1772790334275,3.66592499,87.479,87.431,14.19056671]
[1772790334776,3.68225218,87.489,87.432,3.89756671]
[1772790335273,3.04402203,87.47,87.432,3.89756671]
[1772790336478,10.288,87.469,87.432,3.89756671]
[1772790337973,3.68225218,87.459,87.41,3.04402203]
[1772790338176,3.68225218,87.449,87.402,3.89756671]
[1772790338787,10.291,87.448,87.403,14.19356671]
[1772790339975,3.68225218,87.449,87.406,3.89756671]
[1772790340781,3.68225218,87.449,87.37,20.6]
[1772790340782,3.68225218,87.469,87.421,3.89756671]
[1772790341179,3.68225218,87.469,87.428,10.293]
[1772790341578,3.68225218,87.483,87.431,3.89756671]
[1772790342581,3.68225218,87.483,87.435,3.89756671]
[1772790342987,10.286,87.49,87.443,10.291]
[1772790343188,10.286,87.49,87.444,3.89756671]
[1772790343587,3.68225218,87.482,87.43,3.04402203]
[1772790343783,3.04402203,87.47,87.41,3.04402203]
[1772790343987,6.72627421,87.46,87.41,3.04402203]
[1772790344685,3.68225218,87.449,87.393,3.89756671]
[1772790345391,3.68225218,87.449,87.4,3.04402203]
[1772790345591,3.68225218,87.449,87.394,3.89756671]
[1772790346092,3.68225218,87.449,87.404,10.296]
[1772790346290,10.29,87.454,87.41,3.04402203]
[1772790347192,10.289,87.463,87.414,14.19256671]
[1772790347587,3.04402203,87.47,87.421,3.89756671]
[1772790347887,3.68225218,87.479,87.431,14.19056671]
[1772790348092,3.68225218,87.479,87.432,3.89756671]
[1772790348592,3.68225218,87.479,87.434,3.89756671]
[1772790350694,10.287,87.484,87.44,3.04402203]
[1772790351197,3.68225218,87.481,87.436,10.292]
[1772790351393,3.68225218,87.481,87.43,3.04402203]
[1772790351798,10.287,87.479,87.43,3.04402203]
[1772790352200,3.68225218,87.478,87.421,3.89756671]
[1772790352390,3.68225218,87.469,87.421,3.89756671]
[1772790353497,3.68225218,87.469,87.43,10.293]
[1772790353699,10.288,87.474,87.43,17.23458874]
[1772790354195,10.288,87.474,87.431,3.89756671]
[1772790355200,13.96925218,87.484,87.436,14.18956671]
[1772790356096,13.96925218,87.484,87.436,3.89756671]
[1772790356097,10.288,87.476,87.436,3.89756671]
[1772790357395,10.288,87.476,87.43,3.04098444]
[1772790357396,3.68225218,87.484,87.438,3.89756671]
[1772790358704,3.68225218,87.484,87.44,3.04098444]
[1772790359094,3.68225218,87.484,87.43,3.04098444]
[1772790359899,10.287,87.478,87.432,10.293]
[1772790360095,3.68225218,87.477,87.43,3.04098444]
[1772790360504,10.289,87.467,87.43,3.04098444]
[1772790360705,10.289,87.467,87.424,10.294]
[1772790361001,10.288,87.475,87.43,13.33398444]
[1772790361196,3.68225218,87.477,87.43,3.04098444]
[1772790361596,3.75520471,87.469,87.424,3.89756671]
[1772790361798,3.75520471,87.469,87.36,28.46169451]
[1772790361799,3.04098444,87.46,87.41,6.72624588]
[1772790362006,3.72198102,87.449,87.393,3.68526144]
[1772790362405,3.72198102,87.471,87.401,3.68526144]
[1772790362608,3.72198102,87.471,87.421,3.68526144]
[1772790362812,3.72198102,87.471,87.43,3.04098444]
[1772790363307,3.72198102,87.469,87.42,3.04098444]
[1772790363509,3.72198102,87.492,87.431,3.68526144]
[1772790363699,304.4042203,87.529,87.431,3.68526144]
[1772790363700,3.72198102,87.489,87.44,3.04098444]
[1772790363903,10.286,87.486,87.442,10.291]
[1772790364505,3.04098444,87.5,87.443,3.68526144]
[1772790364705,9.18467899,87.499,87.46,3.04098444]
[1772790364911,14.0077952,87.504,87.45,6.72624588]
[1772790365211,9.18581657,87.503,87.45,6.72624588]
[1772790365508,9.18581657,87.502,87.45,6.72624588]
[1772790365705,9.18581657,87.501,87.46,3.04098444]
[1772790365902,9.18581657,87.5,87.46,3.04098444]
[1772790366213,9.18581657,87.5,87.45,3.68526144]
[1772790366214,3.66992895,87.496,87.45,3.68526144]
[1772790366505,9.18636352,87.495,87.45,6.72624588]
[1772790366709,3.66992895,87.496,87.45,6.72624588]
[1772790366909,9.18636352,87.495,87.45,6.72624588]
[1772790367110,3.66992895,87.496,87.45,6.72624588]
[1772790367310,9.18584443,87.495,87.45,6.72624588]
[1772790367511,3.66992895,87.496,87.45,6.72624588]
[1772790368010,10.285,87.494,87.45,6.72624588]
[1772790368513,3.67168826,87.493,87.45,3.04098444]
[1772790368808,3.04098444,87.49,87.44,3.04098444]
[1772790369011,3.04098444,87.49,87.44,6.72624588]
[1772790369514,3.67168826,87.489,87.44,3.68526144]
[1772790369912,3.67168826,87.489,87.44,3.04098444]
[1772790370108,10.286,87.488,87.441,3.68526144]
[1772790370316,3.66377234,87.509,87.46,3.04098444]
[1772790370608,9.18204683,87.508,87.46,3.04098444]
[1772790370808,3.66377234,87.499,87.447,3.68526144]
[1772790371013,3.66377234,87.479,87.432,3.68526144]
[1772790371318,3.66377234,87.479,87.42,3.04098444]
[1772790371916,10.288,87.47,87.421,10.294]
[1772790372616,10.288,87.47,87.423,10.294]
[1772790372817,10.288,87.47,87.424,3.68526144]
[1772790374118,13.32898444,87.47,87.424,3.68526144]
[1772790374419,10.289,87.463,87.424,3.68526144]
[1772790374618,10.289,87.463,87.414,10.295]
[1772790374822,3.69885011,87.459,87.409,3.68526144]
[1772790375120,3.69885011,87.449,87.4,3.04098444]
[1772790375617,3.69885011,87.449,87.401,10.296]
[1772790376017,3.69885011,87.449,87.401,13.98126144]
[1772790376214,3.69885011,87.449,87.41,3.04098444]
[1772790376716,3.69885011,87.449,87.401,3.68526144]
[1772790377414,3.69885011,87.449,87.381,3.68526144]
[1772790377620,3.72897792,87.426,87.38,10.299]
[1772790378715,10.294,87.425,87.38,10.299]
[1772790379223,3.70679013,87.424,87.366,3.68526144]
[1772790379815,3.71561644,87.406,87.341,3.68526144]
[1772790380122,3.71561644,87.399,87.326,3.68526144]
[1772790380322,3.71561644,87.378,87.329,10.305]
[1772790380515,3.71561644,87.399,87.33,3.68526144]
[1772790381122,3.71561644,87.378,87.314,3.68526144]
[1772790381821,3.71561644,87.366,87.314,3.68526144]
[1772790382121,3.71561644,87.366,87.281,3.68526144]
[1772790382428,3.42348372,87.355,87.281,3.68526144]
[1772790382922,3.42348372,87.34,87.281,3.68526144]
[1772790383717,3.26276453,87.339,87.281,3.68526144]
[1772790384327,3.26276453,87.329,87.263,3.68526144]
[1772790384924,3.26276453,87.326,87.263,3.68526144]
[1772790385319,3.26276453,87.326,87.265,3.68526144]
[1772790387231,3.26276453,87.326,87.267,3.68526144]
[1772790387631,3.25987964,87.342,87.285,3.68526144]
[1772790388923,3.25987964,87.342,87.287,10.31]
[1772790389232,3.06151239,87.337,87.285,3.68526144]
[1772790389834,3.06151239,87.337,87.289,10.309]
[1772790390334,3.10767728,87.359,87.29,3.68526144]
[1772790390529,13.41067728,87.348,87.29,3.68526144]
[1772790390737,3.10767728,87.347,87.29,3.68526144]
[1772790391834,3.10767728,87.347,87.295,10.309]
[1772790392028,3.10767728,87.347,87.29,3.68526144]
[1772790392525,3.14235345,87.339,87.274,3.68037442]
[1772790393330,3.14240275,87.333,87.274,3.68037442]
[1772790393933,10.306,87.318,87.274,3.68037442]
[1772790394133,3.15439459,87.317,87.253,3.68037442]
[1772790394340,3.15439459,87.317,87.195,20.642]
[1772790394341,3.15439459,87.317,87.231,3.68037442]
[1772790394739,10.309,87.298,87.245,3.68037442]
[1772790395437,13.46339459,87.296,87.245,3.68037442]
[1772790396836,3.16150264,87.293,87.234,10.316]
[1772790397539,3.16150264,87.289,87.234,10.316]
[1772790398339,3.16150264,87.289,87.239,3.68037442]
[1772790399237,3.31218052,87.279,87.225,3.68037442]
[1772790400737,3.30098463,87.277,87.21,11.28705841]
[1772790400937,3.30098463,87.277,87.21,3.68037442]
[1772790401342,10.313,87.263,87.21,3.68037442]
[1772790401740,3.30098463,87.263,87.21,3.68037442]
[1772790402043,3.34509952,87.295,87.22,3.68037442]
[1772790402439,3.34509952,87.29,87.232,3.68037442]
[1772790403045,3.34509952,87.305,87.251,10.314]
[1772790403540,3.34509952,87.305,87.248,3.68037442]
[1772790404642,13.647806,87.302,87.249,10.314]
[1772790405045,3.339806,87.301,87.249,10.314]
[1772790406645,3.339806,87.301,87.249,13.99437442]
[1772790406846,10.308,87.3,87.249,13.99437442]
[1772790407046,13.6383178,87.3,87.249,13.99437442]
[1772790407348,3.3303178,87.299,87.249,3.68037442]
[1772790408237,10.309,87.294,87.249,3.68037442]
[1772790409249,3.3303178,87.299,87.249,3.68037442]
[1772790411241,3.3303178,87.299,87.251,10.314]
[1772790411441,3.3303178,87.299,87.249,3.68037442]
[1772790412046,3.3303178,87.299,87.233,3.68037442]
[1772790412646,3.24578611,87.272,87.211,3.68037442]
[1772790413241,10.312,87.266,87.212,10.319]
[1772790413453,10.312,87.266,87.213,3.68037442]
[1772790414947,10.312,87.266,87.218,10.318]
[1772790415152,10.313,87.259,87.213,3.68037442]
[1772790415351,3.24578611,87.272,87.213,3.68037442]
[1772790415747,10.313,87.26,87.213,3.68037442]
[1772790416553,10.312,87.268,87.216,3.68037442]
[1772790416753,3.24578611,87.272,87.216,3.68037442]
[1772790417255,3.24578611,87.272,87.219,3.68037442]
[1772790417849,10.312,87.268,87.223,10.317]
[1772790418047,10.312,87.268,87.224,3.68037442]
[1772790418952,3.24578611,87.272,87.226,3.68037442]
[1772790420955,10.311,87.276,87.233,3.68037442]
[1772790421450,10.31,87.283,87.234,10.316]
[1772790421956,20.616,87.306,87.17,62.0]
[1772790421957,3.32641618,87.282,87.204,3.85594972]
[1772790423057,10.312,87.269,87.222,3.85594972]
[1772790423549,10.312,87.269,87.223,10.317]
[1772790423749,10.313,87.26,87.222,3.85594972]
[1772790424053,10.313,87.26,87.191,3.85594972]
[1772790424253,10.313,87.26,87.212,10.319]
[1772790424447,10.313,87.26,87.22,3.05634068]
[1772790427455,3.30425807,87.286,87.241,3.85594972]
[1772790427651,3.05634068,87.29,87.241,3.85594972]
[1772790427652,3.30425807,87.299,87.25,3.05634068]
[1772790427853,3.30425807,87.299,87.26,3.05634068]
[1772790428353,3.05634068,87.31,87.26,3.05634068]
[1772790428553,3.30548673,87.329,87.271,3.85594972]
[1772790428755,3.30548673,87.329,87.206,160.53]
[1772790428756,3.30548673,87.329,87.28,6.9122904]
[1772790429157,10.305,87.327,87.282,10.31]
[1772790429756,11.3428839,87.35,87.29,3.05634068]
[1772790429757,10.304,87.335,87.29,3.05634068]
[1772790430556,3.28192135,87.344,87.28,3.85594972]
[1772790430756,3.28192135,87.342,87.291,3.85594972]
[1772790431056,12.40737285,87.341,87.291,3.85594972]
[1772790431263,3.28192135,87.341,87.291,3.85594972]
[1772790431763,10.304,87.338,87.291,3.85594972]
[1772790431965,3.28192135,87.341,87.292,10.309]
[1772790432262,3.28192135,87.341,87.293,3.85594972]
[1772790432862,10.304,87.34,87.293,3.85594972]
[1772790433266,3.34587316,87.339,87.293,3.85594972]
[1772790433662,3.33340098,87.328,87.278,3.85594972]
[1772790433858,3.33340098,87.328,87.262,3.85594972]
[1772790434163,3.33340098,87.326,87.262,3.85594972]
[1772790434360,7.62816515,87.35,87.24,7.62816515]
[1772790434361,3.33340098,87.324,87.241,3.85594972]
[1772790434561,3.33340098,87.322,87.241,3.85594972]
[1772790434758,3.33340098,87.307,87.249,10.314]
[1772790434968,3.33340098,87.307,87.241,3.85594972]
[1772790436264,3.36690892,87.323,87.258,3.85594972]
[1772790436465,12.50011904,87.322,87.258,3.85594972]
[1772790436669,12.50011904,87.321,87.258,3.85594972]
[1772790436867,9.13321012,87.32,87.258,3.85594972]
[1772790437170,3.36690892,87.321,87.258,3.85594972]
[1772790437470,3.36690892,87.319,87.266,10.312]
[1772790438773,3.36455362,87.318,87.258,3.85594972]
[1772790439368,3.36455362,87.309,87.258,3.85594972]
[1772790439672,3.36455362,87.309,87.241,3.85594972]
[1772790439875,3.35755777,87.295,87.221,3.85594972]
[1772790440968,3.35755777,87.295,87.242,14.17094972]
[1772790441170,3.35755777,87.295,87.243,3.85594972]
[1772790441573,3.35755777,87.319,87.243,3.85594972]
[1772790441771,3.33931286,87.317,87.243,3.85594972]
[1772790441971,3.33931286,87.315,87.243,3.85594972]
[1772790442877,10.308,87.303,87.255,3.85594972]
[1772790443468,10.309,87.296,87.255,3.85594972]
[1772790444777,10.308,87.306,87.256,14.16894972]
[1772790444973,10.308,87.306,87.257,3.85594972]
[1772790445775,10.308,87.3,87.257,3.85594972]
[1772790446573,3.33937344,87.301,87.24,3.85594972]
[1772790447884,10.31,87.285,87.24,3.85594972]
[1772790448088,3.33937344,87.301,87.24,3.85594972]
[1772790448682,3.33937344,87.301,87.248,3.85594972]
[1772790449787,10.308,87.299,87.251,10.314]
[1772790450385,10.308,87.299,87.252,3.85594972]
[1772790451487,10.309,87.293,87.252,3.85594972]
[1772790452984,3.34013751,87.285,87.206,3.83720769]
[1772790453385,10.314,87.255,87.206,3.83720769]
[1772790454287,10.314,87.255,87.2,7.62816515]
[1772790454288,10.314,87.249,87.208,3.83720769]
[1772790455279,10.313,87.256,87.208,3.83720769]
[1772790456482,3.39985063,87.247,87.198,10.32]
[1772790456686,3.39985063,87.247,87.192,3.83720769]
[1772790457481,10.315,87.244,87.194,10.321]
[1772790458484,10.315,87.244,87.195,3.83720769]
[1772790460592,3.39985063,87.247,87.204,10.32]
[1772790460893,3.39985063,87.247,87.2,3.05776294]
[1772790461391,3.39985063,87.247,87.202,3.83720769]
[1772790461587,3.28113318,87.261,87.211,3.83720769]
[1772790461891,3.05776294,87.26,87.211,3.83720769]